[Event "Early-Titled-Tuesday-Blitz-October-03-2023"]
[Site "Chess.com"]
[Date "2023.10.03"]
[Round "5"]
[White "ural58"]
[Black "soumeow"]
[Result "1-0"]
[WhiteElo "2519"]
[BlackElo "2291"]
[TimeControl "180+1"]
[EndTime "8:55:10 PDT"]
[Termination "ural58 won on time"]

1. e4 {[%clk 0:02:58.2]} 1... c5 {[%clk 0:02:59.2]} 2. b3 {[%clk 0:02:57.6]}
2... Nf6 {[%clk 0:02:52.8]} 3. e5 {[%clk 0:02:57]} 3... Nd5 {[%clk 0:02:52.9]}
4. Nc3 {[%clk 0:02:57.2]} 4... Nxc3 {[%clk 0:02:50.9]} 5. dxc3 {[%clk
0:02:57.3]} 5... Nc6 {[%clk 0:02:49.7]} 6. Nf3 {[%clk 0:02:57.5]} 6... g6 {[%clk
0:02:48.6]} 7. Bc4 {[%clk 0:02:57.6]} 7... Bg7 {[%clk 0:02:44.7]} 8. O-O {[%clk
0:02:58]} 8... O-O {[%clk 0:02:42]} 9. Bf4 {[%clk 0:02:56.1]} 9... a6 {[%clk
0:02:27.3]} 10. a4 {[%clk 0:02:55.5]} 10... b6 {[%clk 0:02:12.7]} 11. Qd2 {[%clk
0:02:54]} 11... Na5 {[%clk 0:02:06.2]} 12. Bd5 {[%clk 0:02:49.3]} 12... Ra7
{[%clk 0:01:56.4]} 13. c4 {[%clk 0:02:47.6]} 13... Bb7 {[%clk 0:01:54.7]} 14.
Rad1 {[%clk 0:02:47.1]} 14... Qc8 {[%clk 0:01:41.8]} 15. Bh6 {[%clk 0:02:37.6]}
15... Nc6 {[%clk 0:01:31]} 16. Qg5 {[%clk 0:02:15.2]} 16... d6 {[%clk
0:00:54.7]} 17. exd6 {[%clk 0:01:57.4]} 17... exd6 {[%clk 0:00:51]} 18. Rfe1
{[%clk 0:01:54.3]} 18... Qd8 {[%clk 0:00:33.9]} 19. Qf4 {[%clk 0:01:45.2]} 19...
Nd4 {[%clk 0:00:16.8]} 20. Bxb7 {[%clk 0:01:31.5]} 20... Rxb7 {[%clk 0:00:16.7]}
21. Nxd4 {[%clk 0:01:31.5]} 21... cxd4 {[%clk 0:00:09.7]} 22. Bxg7 {[%clk
0:01:31.4]} 22... Kxg7 {[%clk 0:00:09]} 23. Qxd4+ {[%clk 0:01:31.5]} 23... Qf6
{[%clk 0:00:06.9]} 24. Qxf6+ {[%clk 0:01:31.2]} 24... Kxf6 {[%clk 0:00:07.8]}
25. Rxd6+ {[%clk 0:01:31.2]} 25... Kg7 {[%clk 0:00:08.5]} 26. Kf1 {[%clk
0:01:28.7]} 26... Rc8 {[%clk 0:00:08.1]} 27. Re5 {[%clk 0:01:27.5]} 27... b5
{[%clk 0:00:05.8]} 28. axb5 {[%clk 0:01:26]} 28... axb5 {[%clk 0:00:06.2]} 29.
c5 {[%clk 0:01:26.6]} 29... f6 {[%clk 0:00:05.8]} 30. Red5 {[%clk 0:01:25.2]}
30... Kh6 {[%clk 0:00:04.9]} 31. b4 {[%clk 0:01:24.3]} 31... Ra7 {[%clk
0:00:04.6]} 32. Ke2 {[%clk 0:01:23.8]} 32... Ra1 {[%clk 0:00:04.3]} 33. Rxf6
{[%clk 0:01:19.2]} 33... Re8+ {[%clk 0:00:03.7]} 34. Kf3 {[%clk 0:01:16.7]}
34... Rc1 {[%clk 0:00:03.1]} 35. Rd2 {[%clk 0:01:14]} 35... Rb1 {[%clk
0:00:02.1]} 36. Rf4 {[%clk 0:01:13.8]} 36... g5 {[%clk 0:00:01.3]} 37. Rfd4
{[%clk 0:01:06.7]} 1-0

[Event "Early-Titled-Tuesday-Blitz-October-03-2023"]
[Site "Chess.com"]
[Date "2023.10.03"]
[Round "5"]
[White "C_K_G"]
[Black "SAInt_666"]
[Result "0-1"]
[WhiteElo "1888"]
[BlackElo "2649"]
[TimeControl "180+1"]
[EndTime "8:55:11 PDT"]
[Termination "SAInt_666 won on time"]

1. e4 {[%clk 0:03:00.9]} 1... c5 {[%clk 0:03:00]} 2. Nf3 {[%clk 0:03:00.9]} 2...
d6 {[%clk 0:03:00.2]} 3. d4 {[%clk 0:03:00.5]} 3... cxd4 {[%clk 0:03:01.1]} 4.
Nxd4 {[%clk 0:03:00.5]} 4... Nf6 {[%clk 0:03:01.8]} 5. Nc3 {[%clk 0:03:00.7]}
5... Nc6 {[%clk 0:03:02.6]} 6. Be2 {[%clk 0:02:56.6]} 6... e5 {[%clk 0:03:02.8]}
7. Nb3 {[%clk 0:02:56.5]} 7... Be6 {[%clk 0:03:02.4]} 8. Be3 {[%clk 0:02:55.5]}
8... Be7 {[%clk 0:03:02.9]} 9. O-O {[%clk 0:02:55.3]} 9... O-O {[%clk
0:03:03.5]} 10. f4 {[%clk 0:02:51.1]} 10... exf4 {[%clk 0:03:03]} 11. Rxf4
{[%clk 0:02:39.3]} 11... a6 {[%clk 0:03:02.7]} 12. a4 {[%clk 0:02:16.8]} 12...
Nd7 {[%clk 0:03:02.1]} 13. Rf1 {[%clk 0:02:11.4]} 13... Rc8 {[%clk 0:03:00.2]}
14. Nd5 {[%clk 0:02:05.4]} 14... Bg5 {[%clk 0:02:56.1]} 15. Qd2 {[%clk
0:01:51.7]} 15... Bxe3+ {[%clk 0:02:55]} 16. Qxe3 {[%clk 0:01:51.5]} 16... Nce5
{[%clk 0:02:50.9]} 17. a5 {[%clk 0:01:43.8]} 17... Rxc2 {[%clk 0:02:33.5]} 18.
Rab1 {[%clk 0:01:32.6]} 18... Rc8 {[%clk 0:02:19.9]} 19. Rfc1 {[%clk 0:01:25.6]}
19... Bxd5 {[%clk 0:02:06.9]} 20. exd5 {[%clk 0:01:24]} 20... Qh4 {[%clk
0:02:06.8]} 21. Nd4 {[%clk 0:01:11.7]} 21... g6 {[%clk 0:02:06.8]} 22. b4 {[%clk
0:00:58.6]} 22... Nf6 {[%clk 0:02:04.5]} 23. Bf3 {[%clk 0:00:31.5]} 23... Qxh2+
{[%clk 0:01:50.2]} 24. Kxh2 {[%clk 0:00:27.7]} 24... Nfg4+ {[%clk 0:01:50.5]}
25. Bxg4 {[%clk 0:00:23]} 25... Nxg4+ {[%clk 0:01:51.4]} 26. Kg3 {[%clk
0:00:20.1]} 26... Nxe3 {[%clk 0:01:52.3]} 27. Kf3 {[%clk 0:00:15.7]} 27... Nxd5
{[%clk 0:01:52.3]} 28. Rxc8 {[%clk 0:00:10.8]} 28... Rxc8 {[%clk 0:01:53.2]} 29.
b5 {[%clk 0:00:10.3]} 29... Nc3 {[%clk 0:01:52.9]} 30. Rb3 {[%clk 0:00:09.7]}
30... Nxb5 {[%clk 0:01:50.4]} 31. Nxb5 {[%clk 0:00:09.7]} 31... axb5 {[%clk
0:01:51.3]} 32. Rxb5 {[%clk 0:00:10.4]} 32... Rc5 {[%clk 0:01:49.4]} 33. Rxb7
{[%clk 0:00:08.3]} 33... Rxa5 {[%clk 0:01:49.4]} 34. Rd7 {[%clk 0:00:07.7]}
34... Rf5+ {[%clk 0:01:49.2]} 35. Ke4 {[%clk 0:00:06.6]} 35... d5+ {[%clk
0:01:49.8]} 36. Rxd5 {[%clk 0:00:03]} 36... Rxd5 {[%clk 0:01:50.7]} 37. Kxd5
{[%clk 0:00:03.7]} 37... Kg7 {[%clk 0:01:51]} 38. Ke5 {[%clk 0:00:04.6]} 38...
h5 {[%clk 0:01:48.8]} 39. Ke4 {[%clk 0:00:02.4]} 39... Kf6 {[%clk 0:01:48.2]}
40. Kf4 {[%clk 0:00:03.3]} 40... g5+ {[%clk 0:01:48]} 41. Ke4 {[%clk 0:00:04]}
41... Ke6 {[%clk 0:01:48.9]} 42. Kd4 {[%clk 0:00:04.1]} 42... f5 {[%clk
0:01:49.2]} 43. Ke3 {[%clk 0:00:03.3]} 43... Ke5 {[%clk 0:01:50.1]} 44. Kf3
{[%clk 0:00:03.9]} 44... f4 {[%clk 0:01:49.2]} 45. Kf2 {[%clk 0:00:03.6]} 45...
Ke4 {[%clk 0:01:49.2]} 46. Ke2 {[%clk 0:00:04]} 46... h4 {[%clk 0:01:49.3]} 47.
Kf2 {[%clk 0:00:04.3]} 47... g4 {[%clk 0:01:50.1]} 48. Ke2 {[%clk 0:00:04.4]}
48... g3 {[%clk 0:01:50.8]} 49. Kf1 {[%clk 0:00:03.2]} 49... f3 {[%clk
0:01:51.7]} 50. gxf3+ {[%clk 0:00:02]} 50... Kxf3 {[%clk 0:01:52.6]} 51. Kg1
{[%clk 0:00:02.1]} 51... h3 {[%clk 0:01:53.5]} 52. Kh1 {[%clk 0:00:01.5]} 52...
g2+ {[%clk 0:01:54]} 0-1

[Event "Early-Titled-Tuesday-Blitz-October-03-2023"]
[Site "Chess.com"]
[Date "2023.10.03"]
[Round "5"]
[White "Alexandr_Predke"]
[Black "ozates"]
[Result "1-0"]
[WhiteElo "2868"]
[BlackElo "2628"]
[TimeControl "180+1"]
[EndTime "8:55:13 PDT"]
[Termination "Alexandr_Predke won by resignation"]

1. d4 {[%clk 0:02:59]} 1... Nf6 {[%clk 0:02:59.4]} 2. Nf3 {[%clk 0:02:56.9]}
2... d5 {[%clk 0:02:58.2]} 3. c3 {[%clk 0:02:56]} 3... Bf5 {[%clk 0:02:55.6]} 4.
Qb3 {[%clk 0:02:55.4]} 4... Qc8 {[%clk 0:02:53.6]} 5. Bg5 {[%clk 0:02:54.1]}
5... e6 {[%clk 0:02:53.1]} 6. Bxf6 {[%clk 0:02:53.8]} 6... gxf6 {[%clk
0:02:53.3]} 7. e3 {[%clk 0:02:47.5]} 7... a6 {[%clk 0:02:53.4]} 8. c4 {[%clk
0:02:42.9]} 8... c6 {[%clk 0:02:45.6]} 9. Nc3 {[%clk 0:02:41.5]} 9... b5 {[%clk
0:02:43.1]} 10. cxd5 {[%clk 0:02:33.4]} 10... cxd5 {[%clk 0:02:42.8]} 11. Rc1
{[%clk 0:02:13.6]} 11... Qb7 {[%clk 0:02:42.3]} 12. Be2 {[%clk 0:01:51.2]} 12...
Rg8 {[%clk 0:02:41.5]} 13. Nh4 {[%clk 0:01:44.2]} 13... Bg6 {[%clk 0:02:34.4]}
14. O-O {[%clk 0:01:38.7]} 14... Nd7 {[%clk 0:02:32.2]} 15. Nxg6 {[%clk
0:01:26.8]} 15... hxg6 {[%clk 0:02:28.8]} 16. e4 {[%clk 0:01:27.2]} 16... dxe4
{[%clk 0:02:22.9]} 17. Nxe4 {[%clk 0:01:27.7]} 17... Rd8 {[%clk 0:01:50.9]} 18.
Bf3 {[%clk 0:01:23.1]} 18... Qb8 {[%clk 0:01:51.3]} 19. Rfe1 {[%clk 0:01:23.5]}
19... Rh8 {[%clk 0:01:49.6]} 20. g3 {[%clk 0:01:22.5]} 20... Be7 {[%clk
0:01:47.6]} 21. Rc6 {[%clk 0:01:13.2]} 21... Nb6 {[%clk 0:01:47.1]} 22. Nxf6+
{[%clk 0:00:59.2]} 22... Bxf6 {[%clk 0:01:45.1]} 23. Rcxe6+ {[%clk 0:00:58.8]}
23... Kf8 {[%clk 0:01:39.4]} 24. Rxf6 {[%clk 0:00:59.1]} 24... Nc4 {[%clk
0:01:38.9]} 25. d5 {[%clk 0:00:48.9]} 25... Ne5 {[%clk 0:01:21.4]} 26. Qc3
{[%clk 0:00:44.4]} 26... Re8 {[%clk 0:01:13.3]} 27. Kg2 {[%clk 0:00:25.2]} 27...
Kg7 {[%clk 0:01:06.3]} 28. Rc6 {[%clk 0:00:20.8]} 28... f6 {[%clk 0:00:52.4]}
29. Rc7+ {[%clk 0:00:20.9]} 29... Kg8 {[%clk 0:00:47]} 30. d6 {[%clk 0:00:19.1]}
30... Nxf3 {[%clk 0:00:33.1]} 31. Qb3+ {[%clk 0:00:14.7]} 1-0

[Event "Early-Titled-Tuesday-Blitz-October-03-2023"]
[Site "Chess.com"]
[Date "2023.10.03"]
[Round "5"]
[White "a-z30"]
[Black "DarZay"]
[Result "1/2-1/2"]
[WhiteElo "2507"]
[BlackElo "2223"]
[TimeControl "180+1"]
[EndTime "8:55:17 PDT"]
[Termination "Game drawn by repetition"]

1. d3 {[%clk 0:03:00.9]} 1... d5 {[%clk 0:02:59.3]} 2. Nf3 {[%clk 0:03:00.6]}
2... Nf6 {[%clk 0:02:58.9]} 3. g3 {[%clk 0:03:00.9]} 3... c5 {[%clk 0:02:58.7]}
4. Bg2 {[%clk 0:03:01.6]} 4... Nc6 {[%clk 0:02:58.5]} 5. O-O {[%clk 0:03:02.5]}
5... e5 {[%clk 0:02:56.2]} 6. c4 {[%clk 0:03:02.5]} 6... d4 {[%clk 0:02:55.7]}
7. e3 {[%clk 0:03:01.1]} 7... Be7 {[%clk 0:02:48.7]} 8. a3 {[%clk 0:02:59.7]}
8... Bg4 {[%clk 0:02:47.9]} 9. Qb3 {[%clk 0:02:43]} 9... Qc7 {[%clk 0:02:45.7]}
10. exd4 {[%clk 0:02:41.7]} 10... Bxf3 {[%clk 0:02:39.7]} 11. Bxf3 {[%clk
0:02:37.8]} 11... Nxd4 {[%clk 0:02:37.6]} 12. Qd1 {[%clk 0:02:01.1]} 12... Rd8
{[%clk 0:02:21.9]} 13. Bg2 {[%clk 0:01:39.6]} 13... O-O {[%clk 0:02:17.3]} 14.
Nc3 {[%clk 0:01:36.8]} 14... Qd7 {[%clk 0:02:07.5]} 15. Bg5 {[%clk 0:01:35.1]}
15... h6 {[%clk 0:02:06]} 16. Bxf6 {[%clk 0:01:34.6]} 16... Bxf6 {[%clk
0:02:06.1]} 17. Nd5 {[%clk 0:01:34.1]} 17... Bg5 {[%clk 0:02:05.2]} 18. b4
{[%clk 0:01:24.4]} 18... b6 {[%clk 0:02:01.3]} 19. Re1 {[%clk 0:01:16.3]} 19...
Rfe8 {[%clk 0:01:53.5]} 20. h4 {[%clk 0:01:15.9]} 20... Be7 {[%clk 0:01:47.6]}
21. Rxe5 {[%clk 0:01:12.2]} 21... Bd6 {[%clk 0:01:46.4]} 22. Re4 {[%clk
0:01:02.7]} 22... f5 {[%clk 0:01:43.1]} 23. Rxe8+ {[%clk 0:00:55.6]} 23... Rxe8
{[%clk 0:01:41.3]} 24. Qh5 {[%clk 0:00:52.5]} 24... Ne2+ {[%clk 0:01:28.1]} 25.
Kh1 {[%clk 0:00:43.5]} 25... f4 {[%clk 0:01:27]} 26. gxf4 {[%clk 0:00:25]} 26...
Nxf4 {[%clk 0:01:22.5]} 27. Rg1 {[%clk 0:00:21.2]} 27... Nxg2 {[%clk 0:01:08.2]}
28. Kxg2 {[%clk 0:00:17.4]} 28... Re5 {[%clk 0:01:06.4]} 29. Qg6 {[%clk
0:00:12.5]} 29... Rg5+ {[%clk 0:00:39.7]} 30. hxg5 {[%clk 0:00:11.7]} 30... Qg4+
{[%clk 0:00:38.6]} 31. Kf1 {[%clk 0:00:11.7]} 31... Qd1+ {[%clk 0:00:38.2]} 32.
Kg2 {[%clk 0:00:11.8]} 32... Qg4+ {[%clk 0:00:38.4]} 33. Kf1 {[%clk 0:00:10.9]}
33... Qd1+ {[%clk 0:00:38.4]} 34. Kg2 {[%clk 0:00:10.7]} 34... Qg4+ {[%clk
0:00:38.4]} 1/2-1/2

[Event "Early-Titled-Tuesday-Blitz-October-03-2023"]
[Site "Chess.com"]
[Date "2023.10.03"]
[Round "5"]
[White "JoakimVonAnd"]
[Black "Aariow"]
[Result "1-0"]
[WhiteElo "2740"]
[BlackElo "2496"]
[TimeControl "180+1"]
[EndTime "8:55:19 PDT"]
[Termination "JoakimVonAnd won on time"]

1. c4 {[%clk 0:03:00.9]} 1... e6 {[%clk 0:03:00]} 2. g3 {[%clk 0:02:58.9]} 2...
d5 {[%clk 0:02:59.9]} 3. Bg2 {[%clk 0:02:59.4]} 3... Nf6 {[%clk 0:03:00.6]} 4.
Nf3 {[%clk 0:02:58.1]} 4... Be7 {[%clk 0:03:01.2]} 5. O-O {[%clk 0:02:57.7]}
5... O-O {[%clk 0:03:02.1]} 6. b3 {[%clk 0:02:57.9]} 6... b6 {[%clk 0:02:57.1]}
7. d4 {[%clk 0:02:55.9]} 7... Bb7 {[%clk 0:02:55.6]} 8. Nc3 {[%clk 0:02:55.2]}
8... c5 {[%clk 0:02:41.1]} 9. cxd5 {[%clk 0:02:49.1]} 9... exd5 {[%clk 0:02:38]}
10. Bb2 {[%clk 0:02:45.3]} 10... Nc6 {[%clk 0:02:34.6]} 11. Rc1 {[%clk
0:02:43.9]} 11... Rc8 {[%clk 0:02:34]} 12. Re1 {[%clk 0:02:38.1]} 12... Re8
{[%clk 0:02:30.6]} 13. dxc5 {[%clk 0:02:35.7]} 13... bxc5 {[%clk 0:02:29.5]} 14.
Na4 {[%clk 0:02:35.3]} 14... Qa5 {[%clk 0:01:34.8]} 15. Qd2 {[%clk 0:02:16.1]}
15... Qb5 {[%clk 0:01:07]} 16. Nc3 {[%clk 0:02:13.7]} 16... Qa6 {[%clk
0:01:02.8]} 17. Na4 {[%clk 0:01:56]} 17... Qb5 {[%clk 0:00:49.4]} 18. e3 {[%clk
0:01:56.1]} 18... Ne4 {[%clk 0:00:35.9]} 19. Qe2 {[%clk 0:01:36.1]} 19... Qa5
{[%clk 0:00:28.5]} 20. Nc3 {[%clk 0:01:34.1]} 20... Nb4 {[%clk 0:00:21.2]} 21.
Qd1 {[%clk 0:01:16.6]} 21... Bf6 {[%clk 0:00:13.8]} 22. a3 {[%clk 0:01:05.8]}
22... Nxc3 {[%clk 0:00:12.7]} 23. Bxc3 {[%clk 0:01:05.9]} 23... Bxc3 {[%clk
0:00:12.4]} 24. Rxc3 {[%clk 0:01:06.7]} 24... Qxa3 {[%clk 0:00:13.2]} 25. Qd2
{[%clk 0:01:06.7]} 25... d4 {[%clk 0:00:08.1]} 26. exd4 {[%clk 0:01:03.6]} 26...
cxd4 {[%clk 0:00:07.2]} 27. Rxc8 {[%clk 0:01:03.6]} 27... Rxc8 {[%clk
0:00:05.2]} 28. Nxd4 {[%clk 0:01:03.9]} 28... Bxg2 {[%clk 0:00:05.5]} 29. Kxg2
{[%clk 0:01:04.8]} 29... Qa5 {[%clk 0:00:04.2]} 30. Nf3 {[%clk 0:01:01.5]} 30...
h6 {[%clk 0:00:04.5]} 31. Re7 {[%clk 0:01:00.3]} 31... Rb8 {[%clk 0:00:04.5]}
32. Qf4 {[%clk 0:01:00.5]} 32... Rf8 {[%clk 0:00:04.1]} 33. Qd4 {[%clk
0:00:59.7]} 33... Nc6 {[%clk 0:00:04.1]} 34. b4 {[%clk 0:00:48.9]} 34... Qb5
{[%clk 0:00:02.8]} 35. Qd7 {[%clk 0:00:46]} 1-0

[Event "Early-Titled-Tuesday-Blitz-October-03-2023"]
[Site "Chess.com"]
[Date "2023.10.03"]
[Round "5"]
[White "esrosenberg"]
[Black "JAN2404"]
[Result "1-0"]
[WhiteElo "2368"]
[BlackElo "2070"]
[TimeControl "180+1"]
[EndTime "8:55:25 PDT"]
[Termination "esrosenberg won on time"]

1. Nf3 {[%clk 0:03:00.3]} 1... c5 {[%clk 0:02:56.1]} 2. b4 {[%clk 0:03:00.4]}
2... d5 {[%clk 0:02:48.8]} 3. bxc5 {[%clk 0:02:58]} 3... Nf6 {[%clk 0:02:44.9]}
4. d4 {[%clk 0:02:57.8]} 4... Nc6 {[%clk 0:02:43.5]} 5. e3 {[%clk 0:02:57.6]}
5... Bg4 {[%clk 0:02:41.6]} 6. Be2 {[%clk 0:02:53]} 6... e6 {[%clk 0:02:16.6]}
7. O-O {[%clk 0:02:52.7]} 7... Be7 {[%clk 0:02:16.8]} 8. Nbd2 {[%clk 0:02:51.6]}
8... O-O {[%clk 0:02:16.1]} 9. c4 {[%clk 0:02:51.8]} 9... h6 {[%clk 0:01:47.4]}
10. h3 {[%clk 0:02:51.2]} 10... Bxf3 {[%clk 0:01:47]} 11. Bxf3 {[%clk
0:02:47.9]} 11... Re8 {[%clk 0:01:24.9]} 12. Rb1 {[%clk 0:02:45.9]} 12... Qc7
{[%clk 0:01:23.5]} 13. Qa4 {[%clk 0:02:29]} 13... Rab8 {[%clk 0:01:03.9]} 14.
Ba3 {[%clk 0:02:12.4]} 14... Na5 {[%clk 0:00:44.3]} 15. cxd5 {[%clk 0:01:54.2]}
15... Nxd5 {[%clk 0:00:41.9]} 16. Rfc1 {[%clk 0:01:45.5]} 16... Nc6 {[%clk
0:00:26.6]} 17. Nc4 {[%clk 0:01:36]} 17... f5 {[%clk 0:00:20.6]} 18. Nd6 {[%clk
0:01:29.8]} 18... Bxd6 {[%clk 0:00:19.4]} 19. cxd6 {[%clk 0:01:29.2]} 19... Qf7
{[%clk 0:00:18.8]} 20. Bc5 {[%clk 0:01:02.5]} 20... g5 {[%clk 0:00:11.9]} 21.
Qd1 {[%clk 0:00:59.7]} 21... b6 {[%clk 0:00:09.7]} 22. Bh5 {[%clk 0:00:58.6]}
22... Qf8 {[%clk 0:00:03.3]} 23. d7 {[%clk 0:00:49.1]} 23... bxc5 {[%clk
0:00:03.7]} 24. dxe8=Q {[%clk 0:00:48.7]} 24... Rxe8 {[%clk 0:00:04.6]} 25. Bxe8
{[%clk 0:00:48.7]} 25... Qxe8 {[%clk 0:00:05.5]} 26. Rxc5 {[%clk 0:00:49.4]}
26... Qd7 {[%clk 0:00:05.8]} 27. Rbc1 {[%clk 0:00:44.3]} 27... Nde7 {[%clk
0:00:03.5]} 28. Qa4 {[%clk 0:00:41.7]} 28... Qb7 {[%clk 0:00:03.3]} 29. Rxc6
{[%clk 0:00:41.5]} 29... Nxc6 {[%clk 0:00:02.9]} 30. Qxc6 {[%clk 0:00:42.2]} 1-0

[Event "Early-Titled-Tuesday-Blitz-October-03-2023"]
[Site "Chess.com"]
[Date "2023.10.03"]
[Round "5"]
[White "InitiatingASC"]
[Black "ama18"]
[Result "0-1"]
[WhiteElo "2342"]
[BlackElo "2547"]
[TimeControl "180+1"]
[EndTime "8:55:26 PDT"]
[Termination "ama18 won on time"]

1. d4 {[%clk 0:02:36]} 1... Nf6 {[%clk 0:02:55.8]} 2. c4 {[%clk 0:02:35.2]} 2...
e6 {[%clk 0:02:52]} 3. Nc3 {[%clk 0:02:20.3]} 3... Bb4 {[%clk 0:02:49.4]} 4. Nf3
{[%clk 0:02:13.1]} 4... b6 {[%clk 0:02:46.9]} 5. g3 {[%clk 0:02:11.9]} 5... Bb7
{[%clk 0:02:34.5]} 6. Bg2 {[%clk 0:02:11.7]} 6... O-O {[%clk 0:02:35]} 7. O-O
{[%clk 0:02:11.7]} 7... Bxc3 {[%clk 0:02:35.7]} 8. bxc3 {[%clk 0:02:11.2]} 8...
Be4 {[%clk 0:02:36.6]} 9. Ne1 {[%clk 0:02:10]} 9... Bxg2 {[%clk 0:02:32.2]} 10.
Nxg2 {[%clk 0:02:10.6]} 10... d6 {[%clk 0:02:30.1]} 11. Bg5 {[%clk 0:02:09.5]}
11... Nc6 {[%clk 0:02:28]} 12. e4 {[%clk 0:01:58.4]} 12... h6 {[%clk 0:02:27.7]}
13. Bxf6 {[%clk 0:01:58.3]} 13... Qxf6 {[%clk 0:02:28.6]} 14. Ne3 {[%clk
0:01:58.9]} 14... Na5 {[%clk 0:02:26]} 15. Rb1 {[%clk 0:01:52.9]} 15... Qe7
{[%clk 0:02:22.6]} 16. Qa4 {[%clk 0:01:43.6]} 16... f5 {[%clk 0:02:13.8]} 17.
exf5 {[%clk 0:01:33.4]} 17... exf5 {[%clk 0:02:14.7]} 18. Rfe1 {[%clk
0:01:32.6]} 18... Qf7 {[%clk 0:02:12.9]} 19. Nd5 {[%clk 0:01:28.3]} 19... Rae8
{[%clk 0:01:44.7]} 20. Ne3 {[%clk 0:00:37.4]} 20... f4 {[%clk 0:01:41.9]} 21.
gxf4 {[%clk 0:00:29.3]} 21... Qxf4 {[%clk 0:01:42.8]} 22. Qc2 {[%clk 0:00:25.4]}
22... Qg5+ {[%clk 0:01:24.5]} 23. Kh1 {[%clk 0:00:25.3]} 23... Nxc4 {[%clk
0:01:22.5]} 24. Qb3 {[%clk 0:00:08.5]} 24... Rxf2 {[%clk 0:00:48.1]} 25. Qxc4+
{[%clk 0:00:08.1]} 25... Kh8 {[%clk 0:00:46.9]} 26. Qc6 {[%clk 0:00:02.9]} 26...
Rxe3 {[%clk 0:00:45.1]} 27. Rxe3 {[%clk 0:00:01]} 27... Qxe3 {[%clk 0:00:46]}
28. Rg1 {[%clk 0:00:00.5]} 28... Qf3+ {[%clk 0:00:43.4]} 29. Qxf3 {[%clk
0:00:00.8]} 29... Rxf3 {[%clk 0:00:44.3]} 30. Rg3 {[%clk 0:00:00.9]} 30... Rf2
{[%clk 0:00:43.5]} 0-1

[Event "Early-Titled-Tuesday-Blitz-October-03-2023"]
[Site "Chess.com"]
[Date "2023.10.03"]
[Round "5"]
[White "CrushingKings"]
[Black "Nekoo04"]
[Result "0-1"]
[WhiteElo "2503"]
[BlackElo "2319"]
[TimeControl "180+1"]
[EndTime "8:55:26 PDT"]
[Termination "Nekoo04 won on time"]

1. Nf3 {[%clk 0:02:51.7]} 1... d5 {[%clk 0:02:59.5]} 2. g3 {[%clk 0:02:51.8]}
2... Nf6 {[%clk 0:02:59.7]} 3. Bg2 {[%clk 0:02:52.3]} 3... e6 {[%clk 0:02:59.1]}
4. O-O {[%clk 0:02:52.7]} 4... Be7 {[%clk 0:02:57.3]} 5. c4 {[%clk 0:02:52.3]}
5... O-O {[%clk 0:02:56.5]} 6. b3 {[%clk 0:02:52.1]} 6... c5 {[%clk 0:02:50.5]}
7. cxd5 {[%clk 0:02:51.2]} 7... exd5 {[%clk 0:02:50.3]} 8. d4 {[%clk 0:02:50.7]}
8... Nc6 {[%clk 0:02:45.3]} 9. Bb2 {[%clk 0:02:49.9]} 9... Be6 {[%clk
0:02:43.2]} 10. Nc3 {[%clk 0:02:46.4]} 10... Rc8 {[%clk 0:02:29.9]} 11. Rc1
{[%clk 0:02:37.8]} 11... b6 {[%clk 0:01:57.7]} 12. h3 {[%clk 0:02:18.6]} 12...
Qd7 {[%clk 0:01:32.8]} 13. Kh2 {[%clk 0:02:16.6]} 13... Ne4 {[%clk 0:01:24.5]}
14. Nxe4 {[%clk 0:02:07.1]} 14... dxe4 {[%clk 0:01:21]} 15. Ne5 {[%clk
0:02:07.7]} 15... Nxe5 {[%clk 0:01:17]} 16. dxe5 {[%clk 0:02:07.2]} 16... Rcd8
{[%clk 0:00:46.7]} 17. Qxd7 {[%clk 0:01:41.4]} 17... Rxd7 {[%clk 0:00:45.1]} 18.
Bxe4 {[%clk 0:01:37.7]} 18... Rd2 {[%clk 0:00:44.9]} 19. Rc2 {[%clk 0:01:37.6]}
19... Rfd8 {[%clk 0:00:44.8]} 20. Rfc1 {[%clk 0:01:35.4]} 20... c4 {[%clk
0:00:20.4]} 21. bxc4 {[%clk 0:00:20.7]} 21... Bc5 {[%clk 0:00:20.1]} 22. Kg2
{[%clk 0:00:17.9]} 22... Bxc4 {[%clk 0:00:19.3]} 23. Bd3 {[%clk 0:00:05.2]}
23... Rxc2 {[%clk 0:00:16.6]} 24. Bxc2 {[%clk 0:00:04.7]} 24... Rd2 {[%clk
0:00:15.4]} 0-1

[Event "Early-Titled-Tuesday-Blitz-October-03-2023"]
[Site "Chess.com"]
[Date "2023.10.03"]
[Round "5"]
[White "Elprofessor21"]
[Black "Denis_Makhnyov"]
[Result "1-0"]
[WhiteElo "2661"]
[BlackElo "2926"]
[TimeControl "180+1"]
[EndTime "8:55:28 PDT"]
[Termination "Elprofessor21 won by checkmate"]

1. Nf3 {[%clk 0:02:58.6]} 1... d5 {[%clk 0:02:59.6]} 2. c4 {[%clk 0:02:56.4]}
2... d4 {[%clk 0:02:59.7]} 3. g3 {[%clk 0:02:55.4]} 3... Nc6 {[%clk 0:02:59.4]}
4. Bg2 {[%clk 0:02:55.7]} 4... e5 {[%clk 0:02:59.7]} 5. d3 {[%clk 0:02:56.2]}
5... Bb4+ {[%clk 0:02:59.3]} 6. Nbd2 {[%clk 0:02:55.3]} 6... a5 {[%clk
0:02:59.5]} 7. O-O {[%clk 0:02:55.4]} 7... Nf6 {[%clk 0:02:59.3]} 8. a3 {[%clk
0:02:24.6]} 8... Be7 {[%clk 0:02:58.3]} 9. Qc2 {[%clk 0:02:12.1]} 9... Nd7
{[%clk 0:02:49]} 10. Ne1 {[%clk 0:01:58.1]} 10... O-O {[%clk 0:02:43.5]} 11. e3
{[%clk 0:01:48.3]} 11... Nc5 {[%clk 0:02:41.3]} 12. e4 {[%clk 0:01:46.3]} 12...
a4 {[%clk 0:02:33.9]} 13. b4 {[%clk 0:01:39.2]} 13... axb3 {[%clk 0:02:32.4]}
14. Nxb3 {[%clk 0:01:39.4]} 14... Ra7 {[%clk 0:01:32]} 15. f4 {[%clk 0:01:21.6]}
15... f5 {[%clk 0:01:31.9]} 16. Nxc5 {[%clk 0:01:17.5]} 16... Bxc5 {[%clk
0:01:31.7]} 17. exf5 {[%clk 0:01:18.2]} 17... Bxf5 {[%clk 0:01:31.1]} 18. Qe2
{[%clk 0:01:11.6]} 18... exf4 {[%clk 0:01:06.3]} 19. Bxf4 {[%clk 0:01:08.6]}
19... Kh8 {[%clk 0:01:06.7]} 20. Nc2 {[%clk 0:01:01]} 20... Bg6 {[%clk
0:01:05.2]} 21. Rae1 {[%clk 0:00:46.9]} 21... Na5 {[%clk 0:00:38.8]} 22. Be5
{[%clk 0:00:42.2]} 22... Rxf1+ {[%clk 0:00:34.2]} 23. Rxf1 {[%clk 0:00:42.1]}
23... Nc6 {[%clk 0:00:34.1]} 24. Bxc6 {[%clk 0:00:39.2]} 24... bxc6 {[%clk
0:00:33.5]} 25. Bxg7+ {[%clk 0:00:39.7]} 25... Kg8 {[%clk 0:00:31.5]} 26. Qe6+
{[%clk 0:00:28]} 26... Kxg7 {[%clk 0:00:30.1]} 27. Qe5+ {[%clk 0:00:28.3]} 27...
Kh6 {[%clk 0:00:29.7]} 28. Qxc5 {[%clk 0:00:28.2]} 28... Rb7 {[%clk 0:00:29.5]}
29. Nxd4 {[%clk 0:00:26.7]} 29... Rb2 {[%clk 0:00:28]} 30. Ne6 {[%clk
0:00:24.8]} 30... Qxd3 {[%clk 0:00:05.8]} 31. Qg5# {[%clk 0:00:24.1]} 1-0